bitfinex-derivatives/quotes_ETHF0:USTF0_20250708
["timestamp","ask_amount","ask_price","bid_price","bid_amount"]
[1751936104883,4.16162661,2542.9,2542.8,0.78647]
[1751936105390,3.37513661,2542.9,2542.8,0.78647]
[1751936105692,3.37513661,2542.9,2542.8,1.21217]
[1751936105891,3.7534,2543.2,2543.1,0.78641]
[1751936106088,1.68887493,2543.2,2543.1,1.21211]
[1751936106290,2.38137493,2543.2,2543.1,0.78641]
[1751936106596,1.6867,2543.2,2543.1,1.21211]
[1751936106796,1.6867,2543.2,2543.1,0.78641]
[1751936106998,1.6867,2543.2,2543.1,1.21211]
[1751936107199,3.37603972,2543.2,2543.1,0.78641]
[1751936108398,1.68933972,2543.2,2543.1,1.21211]
[1751936108599,1.78052,2543.4,2543.3,0.78634]
[1751936108798,2.47302,2543.4,2543.3,0.78634]
[1751936109101,4.1624695,2543.4,2543.3,0.78634]
[1751936111195,0.78638,2543.3,2543.2,0.78635]
[1751936111391,3.1683295,2543.3,2543.2,0.78635]
[1751936111597,4.1625295,2543.3,2543.2,0.78635]
[1751936112402,3.3761495,2543.3,2543.2,1.21205]
[1751936112999,3.37869413,2543.3,2543.2,1.21205]
[1751936113899,4.16503413,2543.3,2543.2,0.78635]
[1751936115301,2.47304,2543.3,2543.2,0.78635]
[1751936116296,4.16687055,2543.3,2543.2,0.78635]
[1751936116795,2.47304,2543.3,2543.2,0.78635]
[1751936117396,6.6867,2543.3,2542.8,2.8486]
[1751936117595,3.47400797,2543.2,2543.1,0.78637]
[1751936117792,4.16650797,2543.2,2543.1,0.78637]
[1751936117998,3.38013797,2543.2,2543.1,1.21207]
[1751936118201,3.635,2543.7,2543.1,2.39169]
[1751936118501,2.47964129,2543.6,2543.5,0.78628]
[1751936118701,3.17214129,2543.6,2543.5,0.78628]
[1751936118902,4.16634129,2543.6,2543.5,0.78628]
[1751936119299,3.38009129,2543.6,2543.5,0.78628]
[1751936120601,4.16634129,2543.6,2543.5,0.78628]
[1751936120796,3.38009129,2543.6,2543.5,1.21208]
[1751936120997,0.6925,2543.6,2543.5,1.21208]
[1751936121200,0.7862,2543.8,2543.7,0.78619]
[1751936121402,0.7862,2543.8,2543.3,1.96585]
[1751936121403,0.78625,2543.7,2543.6,0.78623]
[1751936121604,3.63945,2543.7,2543.6,0.78623]
[1751936121910,4.63365,2543.7,2543.6,0.78623]
[1751936122501,0.9942,2543.7,2543.6,0.78623]
[1751936122803,3.47191711,2543.7,2543.6,0.78623]
[1751936125002,4.16681711,2543.7,2543.6,0.78623]
[1751936126206,2.47532,2543.7,2543.6,0.78623]
[1751936126406,0.78628,2543.6,2543.5,0.78626]
[1751936126607,1.43488,2543.6,2543.5,0.78626]
[1751936126801,2.47538,2543.6,2543.5,0.78626]
[1751936126996,0.78631,2543.5,2543.4,0.78628]
[1751936127200,0.78631,2543.5,2543.2,2.9218]
[1751936127201,0.78633,2543.4,2543.3,0.78631]
[1751936127404,2.47543,2543.4,2543.3,0.78631]
[1751936127800,2.47543,2543.4,2542.8,18.32862164]
[1751936127801,0.78638,2543.3,2543.2,0.78635]
[1751936128005,2.47548,2543.3,2543.2,0.78635]
[1751936131513,0.78642,2543.1,2543.0,0.7864]
[1751936131804,2.47552,2543.1,2543.0,0.7864]
[1751936132607,2.47552,2543.1,2543.0,0.78644]
[1751936133102,0.78647,2543.0,2542.9,0.78645]
[1751936133305,1.43507,2542.9,2542.8,0.7865]
[1751936133501,2.47557,2542.9,2542.8,0.7865]
[1751936135504,6.36992735,2543.6,2542.8,0.4258]
[1751936135800,0.6486,2542.9,2542.8,1.2123]
[1751936135998,0.78624,2543.7,2543.6,0.78625]
[1751936136199,4.15418063,2543.7,2543.6,0.78625]
[1751936136404,3.36796063,2543.7,2543.6,0.78625]
[1751936137508,4.15418063,2543.7,2543.6,0.78625]
[1751936137705,0.78631,2543.5,2543.1,1.96597]
[1751936137909,0.78633,2543.4,2543.3,0.7863]
[1751936138409,2.46256115,2543.5,2543.4,0.78631]
[1751936139202,4.15166115,2543.5,2543.4,0.78631]
[1751936139802,3.36536115,2543.5,2543.4,0.78631]
[1751936140415,4.15164115,2543.5,2543.4,0.78631]
[1751936140714,0.78635,2543.4,2543.3,0.78632]
[1751936140914,6.00531115,2543.4,2543.3,0.78632]
[1751936141115,7.04581115,2543.4,2543.3,0.78632]
[1751936141509,6.25946115,2543.4,2543.3,0.78632]
[1751936142310,2.32608298,2543.4,2543.3,5.97595164]
[1751936142716,1.67748298,2543.4,2543.3,5.97595164]
[1751936143418,5.7207,2543.8,2543.7,0.78622]
[1751936143718,8.04700756,2543.8,2543.7,0.78622]
[1751936144616,8.04714566,2543.8,2543.7,0.78622]
[1751936148419,4.15314566,2543.8,2543.7,0.78622]
[1751936150021,0.78626,2543.7,2543.6,0.78622]
[1751936150225,4.15960566,2543.7,2543.6,0.78622]
[1751936152422,3.37334566,2543.7,2543.6,0.78622]
[1751936153023,4.15956566,2543.7,2543.6,0.78622]
[1751936153226,4.15956566,2543.7,2543.6,1.43862]
[1751936153425,4.15956566,2543.7,2543.6,0.78622]
[1751936154014,3.37334566,2543.7,2543.6,0.78622]
[1751936154219,4.15956566,2543.7,2543.6,0.78622]
[1751936157429,4.15956566,2543.7,2543.6,1.43862]
[1751936157622,4.15956566,2543.7,2543.6,0.78622]
[1751936157823,4.15956566,2543.7,2543.6,1.43862]
[1751936158129,4.15956566,2543.7,2543.6,0.78622]
[1751936160025,3.37334566,2543.7,2543.3,2.17694011]
[1751936160230,2.46413566,2543.6,2543.5,0.78625]
[1751936160427,4.15523566,2543.6,2543.5,0.78625]
[1751936160730,1.67784566,2543.6,2543.5,3.61559011]
[1751936160934,0.78622,2543.7,2543.6,0.78622]
[1751936161229,4.14723434,2543.7,2543.6,1.43862]
[1751936161430,2.32491434,2543.7,2543.6,1.43862]
[1751936161932,1.66991434,2543.7,2543.6,7.20482]
[1751936162132,2.32491434,2543.7,2543.6,7.20482]
[1751936168629,1.66991434,2543.7,2543.6,7.20482]
[1751936169222,2.32491434,2543.7,2543.6,7.20482]
[1751936169430,1.66991434,2543.7,2543.6,7.20482]
[1751936169631,2.32491434,2543.7,2543.6,7.20482]
[1751936171637,4.14723434,2543.7,2543.6,0.78622]
[1751936172331,3.36101434,2543.7,2543.6,0.78622]
[1751936172531,4.14723434,2543.7,2543.6,0.78622]
[1751936172731,3.36101434,2543.7,2543.6,0.78622]
[1751936173334,3.36101434,2543.7,2543.6,1.43862]
[1751936173939,4.14723434,2543.7,2543.6,1.43862]
[1751936174237,3.36101434,2543.7,2543.6,1.43862]
[1751936176444,4.14723434,2543.7,2543.6,1.43862]
[1751936176644,3.36101434,2543.7,2543.6,1.43862]
[1751936176844,4.14723434,2543.7,2543.6,1.43862]
[1751936177046,3.36101434,2543.7,2543.6,1.43862]
[1751936178944,3.36101434,2543.7,2543.6,0.78622]
[1751936179748,3.36101434,2543.7,2543.6,1.43862]
[1751936179942,4.14723434,2543.7,2543.6,0.78622]
[1751936180441,0.7865,2542.8,2542.4,8.07036224]
[1751936180637,0.7865,2542.8,2542.1,0.14996696]
[1751936180638,0.78668,2542.2,2542.1,5.18192365]
[1751936180843,15.586537,2542.2,2541.2,0.78699]
[1751936181042,15.586537,2542.2,2541.1,0.9143]
[1751936181043,2.17694011,2541.6,2541.1,1.70131]
[1751936181248,0.78699,2541.2,2541.1,0.9143]
[1751936181451,0.78699,2541.2,2541.1,1.5793]
[1751936181742,0.78699,2541.2,2541.1,0.665]
[1751936181743,1.8598116,2541.2,2541.1,0.665]
[1751936181956,1.8598116,2541.2,2541.1,1.45201]
[1751936182356,3.62692,2541.5,2541.3,0.78695]
[1751936182557,2.84,2541.5,2541.4,0.78693]
[1751936182757,1.85933135,2541.5,2541.4,0.78693]
[1751936183354,41.58674,2542.1,2541.4,4.96363]
[1751936183558,1.85714044,2542.0,2541.9,0.78678]
[1751936184057,0.78686,2541.7,2541.2,1.0426]
[1751936184257,0.78686,2541.7,2541.5,1.45189]
[1751936184453,0.78687,2541.6,2541.2,1.0426]
[1751936184660,0.7869,2541.6,2541.3,0.78696]
[1751936184859,0.78686,2541.7,2541.4,0.78691]
[1751936185260,0.78687,2541.6,2541.3,1.45194]
[1751936185456,0.78691,2541.5,2541.3,1.45194]
[1751936185759,1.96695,2541.9,2541.3,1.7076]
[1751936185959,0.78692,2541.5,2541.3,2.49455]
[1751936186158,0.78693,2541.4,2541.3,2.49455]
[1751936186560,0.78692,2541.5,2541.3,2.49455]
[1751936186760,0.78693,2541.4,2541.3,2.49455]
[1751936187659,0.78693,2541.4,2541.3,0.665]
[1751936188961,7.88603625,2542.1,2541.3,1.7076]
[1751936189162,1.96703,2541.8,2541.3,2.49455]
[1751936189455,0.78693,2541.4,2541.3,2.49455]
[1751936189661,0.78693,2541.4,2541.3,2.49456]
[1751936190060,2.7894,2541.7,2541.3,2.49456]
[1751936190061,0.78692,2541.5,2541.4,0.78692]
[1751936190257,0.78692,2541.5,2541.4,1.45192]
[1751936190461,0.7869,2541.5,2541.4,1.45191]
[1751936190656,0.7869,2541.5,2541.4,0.665]
[1751936190963,0.78693,2541.4,2541.3,1.82954]
[1751936191162,0.78693,2541.4,2541.3,2.49454]
[1751936192264,0.78692,2541.5,2541.4,0.78691]
[1751936192465,0.78692,2541.5,2541.4,1.45191]
[1751936192665,0.78692,2541.5,2541.4,0.665]
[1751936193461,0.78692,2541.5,2541.4,1.45193]
[1751936193661,0.78689,2541.6,2541.5,0.78688]
[1751936193861,0.78689,2541.6,2541.5,1.45188]
[1751936194062,8.879,2541.9,2541.5,1.7076]
[1751936194263,0.78687,2541.6,2541.5,1.45189]
[1751936194567,0.78685,2541.7,2541.6,0.78684]
[1751936194763,0.78685,2541.7,2541.6,1.45184]
[1751936194965,0.78685,2541.7,2541.6,2.49444]
[1751936195864,2.9031,2542.0,2541.6,1.7076]
[1751936196067,0.78683,2541.8,2541.7,1.82941]
[1751936196363,0.78681,2541.9,2541.8,0.78678]
[1751936196569,0.78681,2541.9,2541.8,2.49438]
[1751936197969,0.78676,2542.0,2541.9,0.78675]
[1751936198169,0.78676,2542.0,2541.9,1.82935]
[1751936198361,0.78676,2542.0,2541.9,1.7076]
[1751936198565,0.78681,2541.8,2541.7,5.6748]
[1751936198766,1.9669,2542.0,2541.6,0.78684]
[1751936198967,0.78684,2541.7,2541.6,1.45184]
[1751936199270,0.78684,2541.7,2541.6,2.49444]
[1751936199769,0.78684,2541.7,2541.6,1.7076]
[1751936199967,0.78687,2541.6,2541.5,0.78688]
[1751936200170,0.78687,2541.6,2541.5,1.45188]
[1751936200472,0.78687,2541.6,2541.5,2.49448]
[1751936200669,1.96697,2541.9,2541.6,0.78683]
[1751936200670,0.78686,2541.7,2541.6,0.78683]
[1751936200964,0.78686,2541.7,2541.6,2.49443]
[1751936205268,2.72747777,2541.7,2541.6,2.49443]
[1751936206874,1.94061777,2541.7,2541.6,0.665]
[1751936207070,2.96745105,2541.7,2541.6,0.665]
[1751936207376,4.90806882,2541.7,2541.6,0.665]
[1751936208076,2.72745777,2541.7,2541.6,0.665]
[1751936208276,3.13461019,2541.7,2541.6,0.665]
[1751936208472,4.28838796,2541.7,2541.6,2.49447]
[1751936208672,1.94061777,2541.7,2541.6,5.47287]
[1751936208981,3.13450019,2542.1,2542.0,0.78675]
[1751936209276,6.2695504,2542.1,2542.0,2.49435]
[1751936209478,6.2695504,2542.1,2542.0,1.7076]
[1751936209776,2.73412471,2542.1,2542.0,1.7076]
[1751936210279,2.73412471,2542.1,2542.0,1.0426]
[1751936210480,8.11094083,2542.1,2542.0,0.6968]
[1751936210777,3.40492471,2542.1,2542.0,1.48355]
[1751936211174,1.94739471,2542.1,2542.0,1.48355]
[1751936211476,2.61819471,2542.1,2542.0,1.48355]
[1751936211678,1.94739471,2542.1,2542.0,1.48355]
[1751936211973,2.61819471,2542.1,2542.0,1.48355]
[1751936212475,2.61819471,2542.1,2542.0,2.46595]
[1751936213680,5.47558433,2542.1,2542.0,2.46595]
[1751936214184,6.26229433,2542.1,2542.0,2.46595]
[1751936214683,5.47558433,2542.1,2542.0,2.46595]
[1751936215282,1.94739471,2542.1,2542.0,2.46595]
[1751936215779,4.29851763,2542.1,2542.0,2.46595]
[1751936216081,4.29851763,2542.1,2542.0,5.42605]
[1751936216676,1.94739471,2542.1,2542.0,5.42605]
[1751936220588,2.61819471,2542.1,2542.0,5.42605]
[1751936220780,1.94739471,2542.1,2542.0,5.42605]
[1751936221181,2.61819471,2542.1,2542.0,5.42605]
[1751936221383,1.94739471,2542.1,2542.0,5.42605]
[1751936221587,2.61819471,2542.1,2542.0,5.42605]
[1751936222181,2.34896606,2542.5,2542.2,0.78668]
[1751936222383,3.52818962,2542.8,2542.5,0.78659]
[1751936222581,0.6708,2542.8,2542.7,1.48333]
[1751936223989,1.4573,2542.8,2542.7,1.48333]
[1751936224191,0.6708,2542.8,2542.7,1.48333]
[1751936225490,1.4573,2542.8,2542.7,0.78653]
[1751936226688,1.4573,2542.8,2542.7,1.48333]
[1751936227087,0.6708,2542.8,2542.7,1.48333]
[1751936228289,0.6708,2542.8,2542.5,0.78658]
[1751936228290,1.7077,2542.8,2542.5,0.78658]
[1751936228596,0.78659,2542.5,2542.3,0.78663]
[1751936228790,0.6708,2542.4,2542.3,1.48343]
[1751936229088,1.45742,2542.4,2542.3,1.48343]
[1751936229595,1.45742,2542.4,2542.3,0.6968]
[1751936231393,1.45742,2542.4,2542.3,1.48346]
[1751936232890,0.78662,2542.4,2542.3,1.48346]
[1751936233196,1.45742,2542.4,2542.3,4.64508834]
[1751936233396,1.45742,2542.4,2542.3,3.66268834]
[1751936234599,0.6708,2542.4,2542.3,4.64508834]
[1751936234797,0.78659,2542.6,2542.5,0.78656]
[1751936235096,3.22946249,2542.6,2542.5,2.96578834]
[1751936236893,3.22946249,2542.6,2542.5,2.17922834]
[1751936237293,3.22946249,2542.6,2542.5,2.96581834]
[1751936238200,2.55866249,2542.6,2542.5,2.96581834]
[1751936238394,3.22946249,2542.6,2542.5,2.96581834]
[1751936238599,3.22946249,2542.6,2542.5,3.66261834]
[1751936239295,3.22946249,2542.6,2542.5,2.87602834]
[1751936240292,3.22946249,2542.6,2542.5,3.66261834]
[1751936241106,3.22946249,2542.6,2542.5,0.6968]
[1751936242603,0.78672,2542.1,2542.0,2.813]
[1751936242801,0.78678,2541.9,2541.8,0.78679]
[1751936243098,0.78678,2541.9,2541.7,0.78682]
[1751936243099,0.78684,2541.8,2541.7,0.78682]
[1751936243403,1.45314,2541.8,2541.7,1.48162]
[1751936243605,0.78684,2541.8,2541.7,3.66084834]
[1751936243802,1.45314,2541.8,2541.7,3.66084834]
[1751936244199,1.45314,2541.8,2541.7,4.66004834]
[1751936244406,0.78684,2541.7,2541.6,0.78686]
[1751936244609,3.2281994,2541.7,2541.6,0.78686]
[1751936244906,3.2281994,2541.7,2541.6,1.48166]
[1751936245307,1.45314,2541.7,2541.6,1.48166]
[1751936245716,1.45314,2541.7,2541.5,0.78689]
[1751936245717,0.78687,2541.6,2541.5,0.78689]
[1751936246017,0.78694,2541.5,2541.4,0.78692]
[1751936246316,0.78694,2541.5,2541.4,1.48172]
[1751936246518,0.6663,2541.5,2541.4,1.48172]
[1751936246811,1.4532,2541.5,2541.4,1.48172]
[1751936247212,1.4532,2541.5,2541.4,3.66094834]
[1751936247413,0.6663,2541.5,2541.4,3.66094834]
[1751936247713,1.4532,2541.5,2541.4,3.66094834]
[1751936249219,0.6663,2541.5,2541.4,4.66014834]
[1751936249720,1.4532,2541.5,2541.4,4.66014834]
[1751936249920,0.6663,2541.5,2541.4,4.66014834]
[1751936250918,1.4532,2541.5,2541.4,4.66014834]
[1751936251321,0.6663,2541.5,2541.4,4.66014834]
[1751936251715,1.4532,2541.5,2541.4,4.66014834]
[1751936252219,0.6663,2541.5,2541.4,4.66014834]
[1751936252519,0.78683,2541.9,2541.8,0.78681]
[1751936252719,2.52566678,2541.9,2541.8,3.66083834]
[1751936252920,3.19196678,2541.9,2541.8,3.66083834]
[1751936253323,2.52566678,2541.9,2541.8,3.66083834]
[1751936254212,3.19196678,2541.9,2541.8,3.66083834]
[1751936254412,2.40513678,2541.9,2541.8,4.66003834]
[1751936254722,3.894,2542.0,2541.9,0.78678]
[1751936254916,0.78671,2542.2,2542.1,0.78672]
[1751936255115,3.19352941,2542.2,2542.1,0.78672]
[1751936255311,3.19352941,2542.2,2542.1,1.48152]
[1751936259623,3.19352941,2542.2,2542.1,0.6948]
[1751936260225,3.19352941,2542.2,2542.1,1.48152]
[1751936261223,3.19350941,2542.2,2542.1,1.48152]
[1751936261626,2.52720941,2542.2,2542.1,1.48152]
[1751936261826,3.19350941,2542.2,2542.1,1.48152]
[1751936264026,3.19350941,2542.2,2542.1,2.48072]
[1751936264027,2.40681941,2542.2,2542.1,2.48072]
[1751936266231,2.40681941,2542.2,2542.1,1.48152]
[1751936266432,3.19350941,2542.2,2542.1,1.48152]
[1751936268434,0.78677,2542.1,2541.7,3.0379]
[1751936268630,1.45311,2541.8,2541.7,4.51954]
[1751936268937,0.7869,2541.6,2541.5,0.78687]
[1751936269230,0.78686,2541.7,2541.6,0.78684]
[1751936269434,0.78686,2541.7,2541.6,2.48087]
[1751936269435,0.6663,2541.7,2541.6,2.48087]
[1751936269633,1.45314,2541.7,2541.6,2.48087]
[1751936270235,1.45314,2541.7,2541.6,1.48167]
[1751936270436,0.78697,2541.4,2541.3,0.78693]
[1751936270632,0.78697,2541.4,2541.3,1.46033]
[1751936270834,1.44787,2541.4,2541.3,1.46033]
[1751936271034,1.44787,2541.4,2541.3,0.6734]
[1751936272040,0.787,2541.2,2541.1,4.79041]
[1751936272236,1.4479,2541.2,2541.1,5.46381]
[1751936272438,1.4479,2541.2,2541.1,4.46461]
[1751936272733,1.4479,2541.2,2541.1,3.6776]
[1751936272939,1.4479,2541.2,2541.1,4.46463]
[1751936274640,1.4479,2541.2,2541.1,3.6776]
[1751936275241,1.4479,2541.2,2541.1,4.46463]
[1751936276138,0.6609,2541.2,2541.1,4.46463]
[1751936276740,1.4479,2541.2,2541.1,4.46463]
[1751936278439,0.6609,2541.2,2541.1,4.46463]
[1751936278839,1.4479,2541.2,2541.1,4.46463]
[1751936279040,0.6609,2541.2,2541.1,4.46463]
[1751936279436,1.4479,2541.2,2541.1,4.46463]
[1751936280040,1.709,2541.2,2540.7,3.14922834]
[1751936280240,0.78712,2540.9,2540.8,0.7871]
[1751936280441,1.44802,2540.9,2540.8,1.4605]
[1751936281038,0.6609,2540.9,2540.8,1.4605]
[1751936281240,0.78708,2541.0,2540.9,0.78709]
[1751936281637,1.44798,2541.0,2540.9,1.46049]
[1751936281843,0.78709,2540.9,2540.8,0.7871]
[1751936282043,1.44798,2541.0,2540.9,1.46046]
[1751936283037,1.44798,2541.0,2540.9,0.78706]
[1751936283447,0.78712,2540.9,2540.8,0.7871]
[1751936283645,1.44802,2540.9,2540.8,1.4605]
[1751936283847,1.44802,2540.9,2540.8,0.7871]
[1751936284648,1.44802,2540.9,2540.8,1.4605]
[1751936284843,0.6609,2540.9,2540.8,1.4605]
[1751936285045,0.78707,2541.0,2540.9,0.78709]
[1751936285237,1.44797,2541.0,2540.9,1.46049]
[1751936286545,1.44797,2541.0,2540.9,0.78709]
[1751936287137,1.44797,2541.0,2540.9,1.46049]
[1751936287843,1.44797,2541.0,2540.9,3.63971834]
[1751936288044,1.44797,2541.0,2540.9,1.46049]
[1751936288243,1.44797,2541.0,2540.9,3.63971834]
[1751936289146,1.44797,2541.0,2540.9,1.46049]
[1751936289444,1.44797,2541.0,2540.9,0.78709]
[1751936289748,0.78712,2540.9,2540.8,0.7871]
[1751936290046,1.44802,2540.9,2540.8,1.4605]
[1751936292146,0.6609,2540.9,2540.8,1.4605]
[1751936292347,0.6609,2540.9,2540.8,2.4305]
[1751936292850,0.78707,2541.0,2540.9,0.78709]
[1751936293144,1.44797,2541.0,2540.9,3.63971834]
[1751936293348,0.78707,2541.0,2540.9,3.63971834]
[1751936293551,4.68102,2541.2,2541.1,0.78703]
[1751936293744,5.34192,2541.2,2541.1,2.96625834]
[1751936295440,4.68102,2541.2,2541.1,2.96625834]
[1751936295647,5.34192,2541.2,2541.1,2.96625834]
[1751936296246,3.1850881,2541.2,2541.1,2.96625834]
[1751936296950,2.5241881,2541.2,2541.1,2.96625834]
[1751936297149,2.5241881,2541.2,2541.1,3.63965834]
[1751936297345,3.1850881,2541.2,2541.1,3.63965834]
[1751936297551,2.3980681,2541.2,2541.1,3.63965834]
[1751936298451,3.1850681,2541.2,2541.1,3.63965834]
[1751936298649,3.1850681,2541.2,2541.1,4.60965834]
[1751936302055,3.1850681,2541.2,2541.1,3.63965834]
[1751936303652,1.4479,2541.2,2541.1,3.63965834]
[1751936303858,3.18855702,2541.2,2541.1,3.63965834]
[1751936304455,2.40155702,2541.2,2541.1,4.61125834]
[1751936304748,1.74065702,2541.2,2541.1,4.61125834]
[1751936304952,1.74114897,2541.2,2541.1,4.61125834]
[1751936305258,0.78697,2541.3,2541.2,0.78697]
[1751936305460,0.78697,2541.3,2541.2,7.55067]
[1751936305755,1.74024161,2541.3,2541.2,8.52227]
[1751936305954,3.894,2541.5,2541.4,0.78693]
[1751936306152,8.66072199,2541.5,2541.4,3.64985834]
[1751936307056,7.10240515,2541.5,2541.4,3.64985834]
[1751936307355,0.78706,2541.1,2541.0,0.78703]
[1751936307557,3.20853515,2541.1,2541.0,0.78703]
[1751936307762,2.42147515,2541.1,2540.9,3.0383]
[1751936307956,1.74037515,2541.0,2540.9,6.97621834]
[1751936308259,3.20853515,2541.0,2540.9,5.90122834]
[1751936308458,3.20853515,2541.0,2540.9,3.0383]
[1751936308764,3.20853515,2541.0,2540.9,3.722]
[1751936309762,3.20853515,2541.0,2540.9,4.50909]
[1751936310463,3.20853515,2541.0,2540.9,3.722]
[1751936311458,3.20853515,2541.0,2540.9,4.50909]
[1751936311663,0.78714,2540.8,2540.7,0.78712]
[1751936311861,1.46824,2540.8,2540.7,1.47082]
[1751936312061,2.42147515,2540.8,2540.7,2.44242]
[1751936312262,1.74037515,2540.8,2540.7,2.44242]
[1751936312463,2.42147515,2540.8,2540.7,2.44242]
[1751936313054,3.20859515,2540.8,2540.7,2.44242]
[1751936313366,2.42147515,2540.8,2540.7,2.44242]
[1751936314369,2.42147515,2540.8,2540.7,5.44922]
[1751936314573,3.20859515,2540.8,2540.7,0.78712]
[1751936314764,3.20859515,2540.8,2540.7,1.47082]
[1751936315069,3.20859515,2540.8,2540.7,0.78712]
[1751936315269,3.20859515,2540.8,2540.7,1.47082]
[1751936319667,2.42147515,2540.8,2540.7,2.44242]
[1751936319868,2.42147515,2540.8,2540.7,5.34762]
[1751936321570,1.74037515,2540.8,2540.7,5.34762]
[1751936324468,2.52749515,2540.8,2540.7,5.34762]
[1751936324777,1.74037515,2540.8,2540.7,5.34762]
[1751936325373,2.42147515,2540.8,2540.7,5.34762]
[1751936325673,1.74037515,2540.8,2540.7,5.34762]
[1751936326375,0.78711,2540.9,2540.8,0.78712]
[1751936326672,3.20856132,2540.9,2540.8,3.65004834]
[1751936328479,3.20856132,2540.9,2540.8,4.62164834]
[1751936328675,2.52746132,2540.9,2540.8,4.62164834]
[1751936328874,3.20856132,2540.9,2540.8,4.62164834]
[1751936329272,2.52746132,2540.9,2540.8,4.62164834]
[1751936329472,3.20856132,2540.9,2540.8,4.62164834]
[1751936332079,3.20856132,2540.9,2540.8,3.65004834]
[1751936334982,1.74035132,2540.9,2540.8,6.73294834]
[1751936335187,3.894,2541.2,2541.1,0.78703]
[1751936335387,6.42274905,2541.2,2541.1,3.87842834]
[1751936335685,7.10094905,2541.2,2541.1,2.82402834]
[1751936336283,7.10094905,2541.2,2541.1,3.61105834]
[1751936337687,3.20694905,2541.2,2541.1,3.61105834]
[1751936338687,3.20694905,2541.2,2541.1,2.82402834]
[1751936338882,3.20694905,2541.2,2540.8,0.78709]
[1751936338883,0.78712,2540.9,2540.8,0.78709]
[1751936339087,1.46532,2540.9,2540.8,1.43189]
[1751936339290,1.46532,2540.9,2540.8,0.6448]
[1751936339585,1.46532,2540.9,2540.8,1.43192]
[1751936339978,3.19195814,2540.9,2540.8,0.78712]
[1751936340187,3.19195814,2540.9,2540.8,1.43192]
[1751936342284,1.72663814,2540.9,2540.8,1.43192]
[1751936342488,3.19192814,2540.9,2540.8,2.48632]
[1751936342883,2.51372814,2540.9,2540.8,2.48632]
[1751936343289,3.19192814,2540.9,2540.8,2.48632]
[1751936344589,2.40483814,2540.9,2540.8,2.48632]
[1751936344987,3.19192814,2540.9,2540.8,2.48632]
[1751936345686,3.19192814,2540.9,2540.8,1.43192]
[1751936345890,3.19192814,2540.9,2540.8,0.78712]
[1751936346094,2.40483814,2540.9,2540.8,1.43192]
[1751936346289,2.40483814,2540.9,2540.8,2.48632]
[1751936346885,1.72663814,2540.9,2540.8,2.48632]
[1751936347086,3.894,2541.3,2541.2,0.787]
[1751936347287,5.61913421,2541.3,2541.2,3.61102834]
[1751936347486,6.40610421,2541.3,2541.2,4.66542834]
[1751936347687,7.08430421,2541.3,2541.2,4.66542834]
[1751936347887,6.40610421,2541.3,2541.2,4.66542834]
[1751936348085,7.08430421,2541.3,2541.2,4.66542834]
[1751936349688,2.40333421,2541.3,2541.2,4.66542834]
[1751936349887,3.19030421,2541.3,2541.2,4.66542834]
[1751936350089,3.19030421,2541.3,2541.2,3.61102834]
[1751936350790,3.19030421,2541.3,2541.2,4.66542834]
[1751936352392,2.40333421,2541.3,2541.2,4.66542834]
[1751936352587,1.72513421,2541.3,2541.2,6.76042834]
[1751936353289,2.51210421,2541.3,2541.2,6.76042834]
[1751936353698,1.72513421,2541.3,2541.2,6.76042834]
[1751936354502,2.51210421,2541.3,2541.2,6.76042834]
[1751936354690,3.19030421,2541.3,2541.2,6.76042834]
[1751936355095,2.51210421,2541.3,2541.2,6.76042834]
[1751936355596,3.19030421,2541.3,2541.2,6.76042834]
[1751936355794,2.51210421,2541.3,2541.2,6.76042834]
[1751936356493,3.19030421,2541.3,2541.2,6.76042834]
[1751936356693,2.51210421,2541.3,2541.2,6.76042834]
[1751936357200,3.19030421,2541.3,2541.2,6.76042834]
[1751936358100,1.46517,2541.3,2541.2,6.76042834]
[1751936358300,3.18735414,2541.3,2541.2,6.76042834]
[1751936361606,2.40038414,2541.3,2541.2,6.76042834]
[1751936361799,1.72218414,2541.3,2541.2,6.76042834]
[1751936362104,0.78695,2541.4,2541.3,0.78697]
[1751936362298,0.78695,2541.4,2541.3,1.46547]
[1751936362503,13.07011847,2541.8,2541.3,1.6895]
[1751936362701,2.50920269,2541.7,2541.6,2.17922834]
[1751936362895,2.50920269,2541.7,2541.6,3.64459834]
[1751936363096,2.50920269,2541.7,2541.6,4.65559834]
[1751936363294,3.18400269,2541.7,2541.6,4.65559834]
[1751936364208,3.18400269,2541.7,2541.6,3.64459834]
[1751936365407,3.17845417,2541.7,2541.6,3.64459834]
[1751936372410,2.50365417,2541.7,2541.6,3.64459834]
[1751936372613,3.17845417,2541.7,2541.6,4.65559834]
[1751936372814,3.17845417,2541.7,2541.6,3.64459834]
[1751936375315,3.17845417,2541.7,2541.6,4.65559834]
[1751936377017,3.17845417,2541.7,2541.6,3.64459834]
[1751936378415,1.71681417,2541.7,2541.6,4.65559834]
[1751936378916,1.71681417,2541.7,2541.6,6.75429834]
[1751936379107,0.78679,2541.9,2541.8,0.78681]
[1751936379309,1.46159,2541.9,2541.8,3.64453834]
[1751936379515,3.17714058,2541.9,2541.8,4.65553834]
[1751936380411,3.17714058,2541.9,2541.8,2.85772834]
[1751936380612,3.17714058,2541.9,2541.8,3.64453834]
[1751936386420,2.50234058,2541.9,2541.8,4.65553834]
[1751936386719,3.17714058,2541.9,2541.8,4.65553834]
[1751936389418,4.16724058,2541.9,2541.8,0.6785]
[1751936389623,0.78687,2541.6,2541.5,1.9225]
[1751936389822,0.7869,2541.5,2541.4,0.78691]
[1751936390125,3.18815058,2541.5,2541.4,1.43591]
[1751936391020,0.78693,2541.4,2541.3,1.9414]
[1751936391323,3.18818058,2541.4,2541.3,2.5904]
[1751936391820,3.18818058,2541.4,2541.3,3.37737]
[1751936392016,3.18818058,2541.4,2541.3,2.5904]
[1751936392423,3.18818058,2541.4,2541.3,0.649]
[1751936393525,3.18818058,2541.4,2541.3,1.43597]
[1751936393919,3.18818058,2541.4,2541.3,0.649]
[1751936394120,3.18818058,2541.4,2541.3,1.43597]
[1751936395319,2.50248058,2541.4,2541.3,1.43597]